[Event "Titled Tuesday Blitz March 07 Late 2023"]
[White "Yoo, Christopher Woojin"]
[Black "Shapiro, David"]
[WhiteFideId "30909694"]
[BlackFideId "24133523"]
[WhiteElo "2519"]
[BlackElo "2300"]
[Result "0-1"]
[Round "11"]
[TimeControl "180+2"]
[Date "2023.03.07"]
[WhiteClock "0:00:08"]
[BlackClock "0:00:10"]

1. a3 {[%clk 0:03:00]}  d5 {[%clk 0:02:56]} 2. Nf3 {[%clk 0:02:59]}  Nf6 {[%clk 0:02:55]} 3. g3 {[%clk 0:02:59]}  Nc6 {[%clk 0:02:51]} 4. Bg2 {[%clk 0:02:57]}  e5 {[%clk 0:02:50]} 5. d3 {[%clk 0:02:57]}  a5 {[%clk 0:02:48]} 6. O-O {[%clk 0:02:57]}  Bc5 {[%clk 0:02:47]} 7. Bg5 {[%clk 0:02:39]}  h6 {[%clk 0:02:42]} 8. Bxf6 {[%clk 0:02:39]}  Qxf6 {[%clk 0:02:43]} 9. Nc3 {[%clk 0:02:39]}  Be6 {[%clk 0:02:41]} 10. e4 {[%clk 0:02:39]}  dxe4 {[%clk 0:02:31]} 11. Nxe4 {[%clk 0:02:37]}  Qe7 {[%clk 0:02:31]} 12. Re1 {[%clk 0:02:28]}  O-O {[%clk 0:02:30]} 13. Nxc5 {[%clk 0:02:26]}  Qxc5 {[%clk 0:02:31]} 14. Nxe5 {[%clk 0:02:26]}  Nxe5 {[%clk 0:02:26]} 15. d4 {[%clk 0:02:26]}  Qb6 {[%clk 0:02:26]} 16. Rxe5 {[%clk 0:02:27]}  Qxb2 {[%clk 0:02:24]} 17. Rc5 {[%clk 0:02:17]}  c6 {[%clk 0:02:13]} 18. Rb1 {[%clk 0:02:14]}  Qxa3 {[%clk 0:02:13]} 19. Rxb7 {[%clk 0:02:15]}  Rad8 {[%clk 0:01:18]} 20. Rxc6 {[%clk 0:02:07]}  Qa4 {[%clk 0:01:18]} 21. h4 {[%clk 0:00:42]}  Rxd4 {[%clk 0:01:15]} 22. Qe1 {[%clk 0:00:40]}  Rc4 {[%clk 0:00:40]} 23. Rxe6 {[%clk 0:00:25]}  fxe6 {[%clk 0:00:41]} 24. Qxe6+ {[%clk 0:00:24]}  Kh8 {[%clk 0:00:42]} 25. Qe5 {[%clk 0:00:22]}  Rg4 {[%clk 0:00:32]} 26. Rc7 {[%clk 0:00:05]}  Qd4 {[%clk 0:00:26]} 27. Qxd4 {[%clk 0:00:06]}  Rxd4 {[%clk 0:00:27]} 28. Ra7 {[%clk 0:00:07]}  a4 {[%clk 0:00:26]} 29. Bc6 {[%clk 0:00:07]}  Rd2 {[%clk 0:00:18]} 30. Bxa4 {[%clk 0:00:07]}  Rfxf2 {[%clk 0:00:18]} 31. c4 {[%clk 0:00:03]}  Ra2 {[%clk 0:00:12]} 32. Ra8+ {[%clk 0:00:02]}  Kh7 {[%clk 0:00:12]} 33. Bc6 {[%clk 0:00:03]}  Rxa8 {[%clk 0:00:10]} 34. Kxf2 {[%clk 0:00:04]}  Ra3 {[%clk 0:00:09]} 35. Be4+ {[%clk 0:00:02]}  Kg8 {[%clk 0:00:09]} 36. c5 {[%clk 0:00:03]}  Rc3 {[%clk 0:00:08]} 37. c6 {[%clk 0:00:03]}  Kf7 {[%clk 0:00:08]} 38. Ke2 {[%clk 0:00:03]}  Ke7 {[%clk 0:00:07]} 39. g4 {[%clk 0:00:01]}  Kd6 {[%clk 0:00:07]} 40. g5 {[%clk 0:00:01]}  hxg5 {[%clk 0:00:05]} 41. hxg5 {[%clk 0:00:02]}  Rg3 {[%clk 0:00:05]} 42. g6 {[%clk 0:00:03]}  Rg5 {[%clk 0:00:05]} 43. Kd3 {[%clk 0:00:03]}  Rxg6 {[%clk 0:00:01]} 44. Ke3 {[%clk 0:00:02]}  Rf6 {[%clk 0:00:01]} 45. Kd4 {[%clk 0:00:02]}  Re6 {[%clk 0:00:02]} 46. Ke3 {[%clk 0:00:02]}  Re7 {[%clk 0:00:02]} 47. Kf4 {[%clk 0:00:03]}  Rc7 {[%clk 0:00:03]} 48. Kf5 {[%clk 0:00:03]}  Re7 {[%clk 0:00:03]} 49. Bf3 {[%clk 0:00:03]}  Rf7+ {[%clk 0:00:03]} 50. Kg4 {[%clk 0:00:03]}  Rf6 {[%clk 0:00:03]} 51. Bg2 {[%clk 0:00:03]}  Kc7 {[%clk 0:00:04]} 52. Kg5 {[%clk 0:00:03]}  Rd6 {[%clk 0:00:04]} 53. Be4 {[%clk 0:00:04]}  Kd8 {[%clk 0:00:05]} 54. Kf5 {[%clk 0:00:04]}  Kc7 {[%clk 0:00:05]} 55. Ke5 {[%clk 0:00:04]}  Rf6 {[%clk 0:00:06]} 56. Bd5 {[%clk 0:00:03]}  Rf2 {[%clk 0:00:06]} 57. Be4 {[%clk 0:00:03]}  g5 {[%clk 0:00:06]} 58. Bf5 {[%clk 0:00:02]}  Kxc6 {[%clk 0:00:06]} 59. Bg4 {[%clk 0:00:01]}  Rf4 {[%clk 0:00:06]} 60. Bf5 {[%clk 0:00:01]}  Kc5 {[%clk 0:00:06]} 61. Be6 {[%clk 0:00:02]}  Rf2 {[%clk 0:00:04]} 62. Bf5 {[%clk 0:00:02]}  Kc4 {[%clk 0:00:04]} 63. Be4 {[%clk 0:00:02]}  Kc3 {[%clk 0:00:03]} 64. Bf5 {[%clk 0:00:02]}  Kd2 {[%clk 0:00:03]} 65. Ke4 {[%clk 0:00:03]}  Ke2 {[%clk 0:00:02]} 66. Bg4+ {[%clk 0:00:02]}  Kd2 {[%clk 0:00:03]} 67. Bf3 {[%clk 0:00:03]}  Ke1 {[%clk 0:00:02]} 68. Ke3 {[%clk 0:00:02]}  Kf1 {[%clk 0:00:02]} 69. Bg4 {[%clk 0:00:02]}  Kg1 {[%clk 0:00:02]} 70. Bf3 {[%clk 0:00:02]}  Rf1 {[%clk 0:00:03]} 71. Ke4 {[%clk 0:00:02]}  Rf2 {[%clk 0:00:03]} 72. Bh5 {[%clk 0:00:02]}  Rf4+ {[%clk 0:00:03]} 73. Ke3 {[%clk 0:00:02]}  Kh2 {[%clk 0:00:02]} 74. Bf3 {[%clk 0:00:02]}  Kg3 {[%clk 0:00:03]} 75. Bd1 {[%clk 0:00:02]}  g4 {[%clk 0:00:04]} 76. Be2 {[%clk 0:00:03]}  Rf8 {[%clk 0:00:04]} 77. Bc4 {[%clk 0:00:03]}  Rf3+ {[%clk 0:00:03]} 78. Ke4 {[%clk 0:00:03]}  Rf4+ {[%clk 0:00:04]} 79. Kd3 {[%clk 0:00:03]}  Rxc4 {[%clk 0:00:05]} 80. Kxc4 {[%clk 0:00:04]}  Kf2 {[%clk 0:00:06]} 81. Kd4 {[%clk 0:00:05]}  g3 {[%clk 0:00:06]} 82. Ke4 {[%clk 0:00:05]}  g2 {[%clk 0:00:07]} 83. Kf4 {[%clk 0:00:06]}  g1=Q {[%clk 0:00:08]} 84. Kf5 {[%clk 0:00:07]}  Qe1 {[%clk 0:00:09]} 85. Kf6 {[%clk 0:00:08]}  Qe3 {[%clk 0:00:10]} 0-1


[Site "https://www.chess.com"]

[Event "Titled Tuesday Blitz March 07 Late 2023"]
[White "Real_OceanStorm"]
[Black "Skvortsov, Andrei"]
[BlackFideId "24108600"]
[WhiteElo "2801"]
[BlackElo "2259"]
[Result "1-0"]
[Round "11"]
[TimeControl "180+2"]
[Date "2023.03.07"]
[WhiteClock "0:00:07"]
[BlackClock "0:01:06"]

1. e4 {[%clk 0:03:00]}  d5 {[%clk 0:03:00]} 2. exd5 {[%clk 0:02:53]}  Qxd5 {[%clk 0:03:01]} 3. Nf3 {[%clk 0:02:53]}  Bg4 {[%clk 0:02:59]} 4. Nc3 {[%clk 0:02:52]}  Qe6+ {[%clk 0:02:57]} 5. Qe2 {[%clk 0:02:52]}  Nc6 {[%clk 0:02:55]} 6. Qxe6 {[%clk 0:02:52]}  Bxe6 {[%clk 0:02:55]} 7. Ng5 {[%clk 0:02:52]}  Bf5 {[%clk 0:02:51]} 8. Nd5 {[%clk 0:02:51]}  Rc8 {[%clk 0:02:30]} 9. c3 {[%clk 0:02:49]}  e6 {[%clk 0:02:29]} 10. Ne3 {[%clk 0:02:49]}  Bg6 {[%clk 0:02:28]} 11. d4 {[%clk 0:02:49]}  h6 {[%clk 0:02:28]} 12. Nf3 {[%clk 0:02:49]}  Nf6 {[%clk 0:02:27]} 13. Bb5 {[%clk 0:02:49]}  Be4 {[%clk 0:02:25]} 14. Ne5 {[%clk 0:02:49]}  a6 {[%clk 0:02:24]} 15. Bxc6+ {[%clk 0:02:48]}  Bxc6 {[%clk 0:02:20]} 16. Nxc6 {[%clk 0:02:46]}  bxc6 {[%clk 0:02:20]} 17. b4 {[%clk 0:02:46]}  Nd5 {[%clk 0:02:18]} 18. Bd2 {[%clk 0:02:46]}  f6 {[%clk 0:02:15]} 19. Ke2 {[%clk 0:02:46]}  Nf4+ {[%clk 0:02:15]} 20. Kf3 {[%clk 0:02:31]}  g5 {[%clk 0:02:15]} 21. g3 {[%clk 0:02:28]}  Nd5 {[%clk 0:02:15]} 22. a4 {[%clk 0:02:22]}  Kd7 {[%clk 0:02:09]} 23. h4 {[%clk 0:02:22]}  Bg7 {[%clk 0:02:09]} 24. Kg2 {[%clk 0:02:22]}  f5 {[%clk 0:02:06]} 25. Nxd5 {[%clk 0:02:11]}  cxd5 {[%clk 0:02:05]} 26. hxg5 {[%clk 0:02:07]}  hxg5 {[%clk 0:02:06]} 27. Bxg5 {[%clk 0:02:07]}  e5 {[%clk 0:01:55]} 28. Be3 {[%clk 0:02:06]}  Kc6 {[%clk 0:01:48]} 29. Rhd1 {[%clk 0:02:02]}  Rcg8 {[%clk 0:01:42]} 30. b5+ {[%clk 0:01:03]}  axb5 {[%clk 0:01:41]} 31. axb5+ {[%clk 0:01:00]}  Kxb5 {[%clk 0:01:32]} 32. dxe5 {[%clk 0:00:47]}  c6 {[%clk 0:01:32]} 33. Rdb1+ {[%clk 0:00:39]}  Kc4 {[%clk 0:01:32]} 34. Ra6 {[%clk 0:00:31]}  Rc8 {[%clk 0:01:27]} 35. Ra4+ {[%clk 0:00:23]}  Kxc3 {[%clk 0:01:19]} 36. Bd4+ {[%clk 0:00:23]}  Kc2 {[%clk 0:01:07]} 37. Rb2+ {[%clk 0:00:21]}  Kd3 {[%clk 0:01:07]} 38. Rb3+ {[%clk 0:00:14]}  Kc2 {[%clk 0:01:06]} 39. Rc3+ {[%clk 0:00:14]}  Kd2 {[%clk 0:01:05]} 40. Ra2+ {[%clk 0:00:14]}  Kd1 {[%clk 0:01:06]} 41. Be3 {[%clk 0:00:07]} 1-0


[Site "https://www.chess.com"]

[Event "Titled Tuesday Blitz March 07 Late 2023"]
[White "Mirzoev, Azer"]
[Black "Fier, Alexandr"]
[WhiteFideId "13400304"]
[BlackFideId "2107139"]
[WhiteElo "2525"]
[BlackElo "2610"]
[Result "0-1"]
[Round "11"]
[TimeControl "180+2"]
[Date "2023.03.07"]
[WhiteClock "0:00:01"]
[BlackClock "0:00:31"]

1. d4 {[%clk 0:02:59]}  Nf6 {[%clk 0:02:59]} 2. Nf3 {[%clk 0:02:59]}  b6 {[%clk 0:02:58]} 3. c4 {[%clk 0:02:58]}  Bb7 {[%clk 0:02:59]} 4. Nc3 {[%clk 0:02:59]}  d5 {[%clk 0:02:59]} 5. e3 {[%clk 0:02:50]}  e6 {[%clk 0:02:57]} 6. cxd5 {[%clk 0:02:49]}  Nxd5 {[%clk 0:02:57]} 7. Nxd5 {[%clk 0:02:43]}  exd5 {[%clk 0:02:50]} 8. Ne5 {[%clk 0:02:43]}  Bd6 {[%clk 0:02:48]} 9. Bb5+ {[%clk 0:02:34]}  c6 {[%clk 0:02:48]} 10. Bd3 {[%clk 0:02:34]}  Nd7 {[%clk 0:02:46]} 11. Nxd7 {[%clk 0:02:29]}  Qxd7 {[%clk 0:02:45]} 12. Qh5 {[%clk 0:02:25]}  c5 {[%clk 0:02:36]} 13. dxc5 {[%clk 0:02:22]}  bxc5 {[%clk 0:02:35]} 14. O-O {[%clk 0:02:23]}  g6 {[%clk 0:02:34]} 15. Qh6 {[%clk 0:02:17]}  O-O-O {[%clk 0:02:31]} 16. Bd2 {[%clk 0:02:12]}  Kb8 {[%clk 0:02:31]} 17. Rfd1 {[%clk 0:02:07]}  Qc6 {[%clk 0:02:28]} 18. Qh3 {[%clk 0:01:56]}  h5 {[%clk 0:02:23]} 19. Rac1 {[%clk 0:01:51]}  Qa4 {[%clk 0:02:13]} 20. a3 {[%clk 0:01:39]}  Bc8 {[%clk 0:02:12]} 21. Qf3 {[%clk 0:01:38]}  Bg4 {[%clk 0:02:13]} 22. Bc2 {[%clk 0:00:46]}  Qd7 {[%clk 0:02:06]} 23. Qf6 {[%clk 0:00:42]}  Bxd1 {[%clk 0:02:02]} 24. Bxd1 {[%clk 0:00:42]}  Qe6 {[%clk 0:02:00]} 25. Qc3 {[%clk 0:00:41]}  Qe5 {[%clk 0:02:00]} 26. Qb3+ {[%clk 0:00:41]}  Kc8 {[%clk 0:01:46]} 27. g3 {[%clk 0:00:41]}  Rhe8 {[%clk 0:01:32]} 28. Bf3 {[%clk 0:00:35]}  Bf8 {[%clk 0:01:28]} 29. Ba5 {[%clk 0:00:29]}  Rd7 {[%clk 0:01:27]} 30. Qb5 {[%clk 0:00:26]}  Qd6 {[%clk 0:01:23]} 31. Bb4 {[%clk 0:00:17]}  Qb6 {[%clk 0:01:21]} 32. Qa4 {[%clk 0:00:17]}  Re6 {[%clk 0:01:11]} 33. Ba5 {[%clk 0:00:16]}  Qa6 {[%clk 0:01:11]} 34. b4 {[%clk 0:00:15]}  Rb6 {[%clk 0:00:48]} 35. h4 {[%clk 0:00:13]}  Rbb7 {[%clk 0:00:44]} 36. Kg2 {[%clk 0:00:11]}  Qb5 {[%clk 0:00:43]} 37. Qd1 {[%clk 0:00:10]}  c4 {[%clk 0:00:42]} 38. Qd4 {[%clk 0:00:09]}  Qc6 {[%clk 0:00:39]} 39. Qf4 {[%clk 0:00:08]}  Qd6 {[%clk 0:00:39]} 40. Qg5 {[%clk 0:00:07]}  Qe6 {[%clk 0:00:38]} 41. Rd1 {[%clk 0:00:06]}  Rb5 {[%clk 0:00:38]} 42. Qf4 {[%clk 0:00:06]}  Bd6 {[%clk 0:00:36]} 43. Qd4 {[%clk 0:00:05]}  Bc7 {[%clk 0:00:36]} 44. Qxa7 {[%clk 0:00:05]}  Bxa5 {[%clk 0:00:35]} 45. Qa8+ {[%clk 0:00:04]}  Rb8 {[%clk 0:00:36]} 46. Qxa5 {[%clk 0:00:04]}  Qb6 {[%clk 0:00:35]} 47. Qa4 {[%clk 0:00:03]}  Qb7 {[%clk 0:00:33]} 48. Rc1 {[%clk 0:00:02]}  Kd8 {[%clk 0:00:31]} 49. Qa5+ {[%clk 0:00:01]}  Qb6 {[%clk 0:00:31]} 50. Qa4 {[%clk 0:00:01]}  Qd6 {[%clk 0:00:31]} 0-1


[Site "https://www.chess.com"]

[Event "Titled Tuesday Blitz March 07 Late 2023"]
[White "Costachi, Mihnea"]
[Black "Averjanov, Alexey"]
[WhiteFideId "1217518"]
[BlackFideId "14109867"]
[WhiteElo "2456"]
[BlackElo "2615"]
[Result "1-0"]
[Round "11"]
[TimeControl "180+2"]
[Date "2023.03.07"]
[WhiteClock "0:00:05"]
[BlackClock "0:00:02"]

1. d4 {[%clk 0:03:00]}  d5 {[%clk 0:02:58]} 2. c4 {[%clk 0:03:01]}  dxc4 {[%clk 0:02:56]} 3. Nf3 {[%clk 0:03:01]}  Nf6 {[%clk 0:02:55]} 4. e3 {[%clk 0:03:02]}  e6 {[%clk 0:02:50]} 5. Bxc4 {[%clk 0:03:02]}  a6 {[%clk 0:02:49]} 6. O-O {[%clk 0:03:03]}  c5 {[%clk 0:02:43]} 7. Bb3 {[%clk 0:03:02]}  Nc6 {[%clk 0:02:42]} 8. Nc3 {[%clk 0:03:02]}  cxd4 {[%clk 0:02:37]} 9. exd4 {[%clk 0:03:01]}  Be7 {[%clk 0:02:33]} 10. Be3 {[%clk 0:02:41]}  Nb4 {[%clk 0:02:29]} 11. Qe2 {[%clk 0:02:37]}  O-O {[%clk 0:02:28]} 12. Bg5 {[%clk 0:02:34]}  Nbd5 {[%clk 0:02:14]} 13. Bc2 {[%clk 0:02:30]}  b6 {[%clk 0:02:10]} 14. Ne5 {[%clk 0:02:27]}  Bb7 {[%clk 0:02:08]} 15. Rac1 {[%clk 0:02:24]}  Rc8 {[%clk 0:02:08]} 16. Bb1 {[%clk 0:02:24]}  g6 {[%clk 0:02:02]} 17. Rfd1 {[%clk 0:02:02]}  Re8 {[%clk 0:01:57]} 18. h4 {[%clk 0:01:57]}  Nh5 {[%clk 0:01:50]} 19. Nxd5 {[%clk 0:01:46]}  Qxd5 {[%clk 0:01:16]} 20. Nf3 {[%clk 0:01:46]}  Bf8 {[%clk 0:00:54]} 21. Qe5 {[%clk 0:01:38]}  Bg7 {[%clk 0:00:46]} 22. Qxd5 {[%clk 0:01:38]}  Bxd5 {[%clk 0:00:47]} 23. Be3 {[%clk 0:01:34]}  Nf6 {[%clk 0:00:46]} 24. Ne5 {[%clk 0:01:31]}  Be4 {[%clk 0:00:38]} 25. Bxe4 {[%clk 0:01:13]}  Nxe4 {[%clk 0:00:39]} 26. Nc4 {[%clk 0:01:06]}  Rc6 {[%clk 0:00:36]} 27. Ne5 {[%clk 0:00:59]}  Rcc8 {[%clk 0:00:36]} 28. Nd7 {[%clk 0:00:56]}  b5 {[%clk 0:00:34]} 29. f3 {[%clk 0:00:55]}  Nd6 {[%clk 0:00:28]} 30. b3 {[%clk 0:00:42]}  Nf5 {[%clk 0:00:27]} 31. Kf2 {[%clk 0:00:42]}  Red8 {[%clk 0:00:23]} 32. Rxc8 {[%clk 0:00:36]}  Rxc8 {[%clk 0:00:24]} 33. Nc5 {[%clk 0:00:26]}  Rc6 {[%clk 0:00:22]} 34. b4 {[%clk 0:00:21]}  Nxh4 {[%clk 0:00:19]} 35. d5 {[%clk 0:00:21]}  exd5 {[%clk 0:00:18]} 36. Rxd5 {[%clk 0:00:21]}  h5 {[%clk 0:00:17]} 37. Rd8+ {[%clk 0:00:20]}  Kh7 {[%clk 0:00:17]} 38. Rd7 {[%clk 0:00:21]}  Kg8 {[%clk 0:00:18]} 39. g4 {[%clk 0:00:19]}  hxg4 {[%clk 0:00:17]} 40. fxg4 {[%clk 0:00:20]}  Be5 {[%clk 0:00:16]} 41. Bg5 {[%clk 0:00:18]}  Bf6 {[%clk 0:00:16]} 42. Be3 {[%clk 0:00:14]}  Be5 {[%clk 0:00:16]} 43. Bg5 {[%clk 0:00:14]}  Bf6 {[%clk 0:00:16]} 44. Bf4 {[%clk 0:00:14]}  g5 {[%clk 0:00:15]} 45. Bg3 {[%clk 0:00:09]}  a5 {[%clk 0:00:14]} 46. a3 {[%clk 0:00:09]}  axb4 {[%clk 0:00:14]} 47. axb4 {[%clk 0:00:10]}  Ng6 {[%clk 0:00:12]} 48. Ke3 {[%clk 0:00:11]}  Bc3 {[%clk 0:00:11]} 49. Nd3 {[%clk 0:00:07]}  Kg7 {[%clk 0:00:10]} 50. Rd5 {[%clk 0:00:06]}  Re6+ {[%clk 0:00:09]} 51. Kf3 {[%clk 0:00:06]}  Rf6+ {[%clk 0:00:08]} 52. Kg2 {[%clk 0:00:07]}  Nf4+ {[%clk 0:00:08]} 53. Bxf4 {[%clk 0:00:06]}  gxf4 {[%clk 0:00:09]} 54. Kf3 {[%clk 0:00:07]}  Re6 {[%clk 0:00:08]} 55. Kxf4 {[%clk 0:00:05]}  Bd2+ {[%clk 0:00:08]} 56. Kf3 {[%clk 0:00:04]}  f6 {[%clk 0:00:06]} 57. Kf2 {[%clk 0:00:03]}  Re4 {[%clk 0:00:05]} 58. Rxb5 {[%clk 0:00:03]}  Rxg4 {[%clk 0:00:05]} 59. Rd5 {[%clk 0:00:03]}  Bxb4 {[%clk 0:00:03]} 60. Kf3 {[%clk 0:00:04]}  Rc4 {[%clk 0:00:04]} 61. Rd7+ {[%clk 0:00:04]}  Kg6 {[%clk 0:00:04]} 62. Nf4+ {[%clk 0:00:05]}  Kh6 {[%clk 0:00:04]} 63. Nd5 {[%clk 0:00:02]}  Bc3 {[%clk 0:00:03]} 64. Rd6 {[%clk 0:00:03]}  Be5 {[%clk 0:00:03]} 65. Re6 {[%clk 0:00:02]}  Kg5 {[%clk 0:00:03]} 66. Ne3 {[%clk 0:00:03]}  Rc3 {[%clk 0:00:03]} 67. Ke2 {[%clk 0:00:03]}  Rc5 {[%clk 0:00:02]} 68. Re8 {[%clk 0:00:04]}  Ra5 {[%clk 0:00:02]} 69. Rg8+ {[%clk 0:00:04]}  Kh6 {[%clk 0:00:03]} 70. Nf5+ {[%clk 0:00:04]}  Kh7 {[%clk 0:00:03]} 71. Rg4 {[%clk 0:00:04]}  Ra2+ {[%clk 0:00:04]} 72. Kf3 {[%clk 0:00:04]}  Ra3+ {[%clk 0:00:04]} 73. Ke2 {[%clk 0:00:04]}  Rc3 {[%clk 0:00:04]} 74. Ne7 {[%clk 0:00:03]}  Kh6 {[%clk 0:00:04]} 75. Nf5+ {[%clk 0:00:03]}  Kh5 {[%clk 0:00:05]} 76. Rg8 {[%clk 0:00:04]}  Rc1 {[%clk 0:00:05]} 77. Ke3 {[%clk 0:00:04]}  Rf1 {[%clk 0:00:04]} 78. Ng3+ {[%clk 0:00:02]}  Kh6 {[%clk 0:00:04]} 79. Nxf1 {[%clk 0:00:02]}  Kh7 {[%clk 0:00:03]} 80. Rg2 {[%clk 0:00:03]}  f5 {[%clk 0:00:03]} 81. Kf3 {[%clk 0:00:04]}  Kh6 {[%clk 0:00:03]} 82. Ne3 {[%clk 0:00:05]}  f4 {[%clk 0:00:02]} 83. Nd5 {[%clk 0:00:05]} 1-0


[Site "https://www.chess.com"]

[Event "Titled Tuesday Blitz March 07 Late 2023"]
[White "Duda, Jan-Krzysztof"]
[Black "Fishbein, Alexander"]
[WhiteFideId "1170546"]
[BlackFideId "2000377"]
[WhiteElo "2790"]
[BlackElo "2415"]
[Result "1-0"]
[Round "11"]
[TimeControl "180+2"]
[Date "2023.03.07"]
[WhiteClock "0:01:18"]
[BlackClock "0:00:03"]

1. c3 {[%clk 0:03:00]}  e5 {[%clk 0:02:59]} 2. Qa4 {[%clk 0:02:59]}  Nf6 {[%clk 0:02:57]} 3. f3 {[%clk 0:02:59]}  Nc6 {[%clk 0:02:56]} 4. Kd1 {[%clk 0:02:59]}  Bc5 {[%clk 0:02:40]} 5. Qh4 {[%clk 0:02:59]}  h6 {[%clk 0:02:39]} 6. Qe1 {[%clk 0:02:59]}  d5 {[%clk 0:02:37]} 7. e3 {[%clk 0:02:59]}  Bf5 {[%clk 0:02:37]} 8. d4 {[%clk 0:02:59]}  Bd6 {[%clk 0:02:35]} 9. Qd2 {[%clk 0:02:55]}  O-O {[%clk 0:02:34]} 10. Bd3 {[%clk 0:02:55]}  e4 {[%clk 0:02:34]} 11. Bc2 {[%clk 0:02:55]}  Re8 {[%clk 0:02:33]} 12. h3 {[%clk 0:02:53]}  Qd7 {[%clk 0:02:32]} 13. g4 {[%clk 0:02:51]}  Bh7 {[%clk 0:02:32]} 14. f4 {[%clk 0:02:50]}  Na5 {[%clk 0:02:19]} 15. b3 {[%clk 0:02:49]}  c5 {[%clk 0:02:19]} 16. Qe2 {[%clk 0:02:40]}  c4 {[%clk 0:02:18]} 17. g5 {[%clk 0:02:38]}  Bg6 {[%clk 0:01:51]} 18. gxf6 {[%clk 0:02:38]}  Qf5 {[%clk 0:01:51]} 19. Qg2 {[%clk 0:02:33]}  Bh5+ {[%clk 0:01:50]} 20. Kd2 {[%clk 0:02:29]}  g6 {[%clk 0:01:50]} 21. Ba3 {[%clk 0:02:28]}  Bxf4 {[%clk 0:01:45]} 22. Qf2 {[%clk 0:02:25]}  Bg5 {[%clk 0:01:32]} 23. Qxf5 {[%clk 0:02:24]}  gxf5 {[%clk 0:01:32]} 24. h4 {[%clk 0:02:25]}  Bxf6 {[%clk 0:01:28]} 25. Nh3 {[%clk 0:02:24]}  Bg4 {[%clk 0:01:24]} 26. Nf4 {[%clk 0:02:24]}  Rad8 {[%clk 0:01:20]} 27. Bd1 {[%clk 0:02:20]}  Bxd1 {[%clk 0:01:08]} 28. Kxd1 {[%clk 0:02:21]}  b5 {[%clk 0:01:06]} 29. Nd2 {[%clk 0:02:21]}  Nc6 {[%clk 0:01:03]} 30. Nh5 {[%clk 0:02:20]}  Bh8 {[%clk 0:01:02]} 31. Ke2 {[%clk 0:02:18]}  a5 {[%clk 0:00:58]} 32. Raf1 {[%clk 0:02:15]}  b4 {[%clk 0:00:56]} 33. Rhg1+ {[%clk 0:02:13]}  Kh7 {[%clk 0:00:55]} 34. Rxf5 {[%clk 0:02:13]}  Rd7 {[%clk 0:00:50]} 35. bxc4 {[%clk 0:02:11]}  bxa3 {[%clk 0:00:46]} 36. cxd5 {[%clk 0:02:10]}  Nd8 {[%clk 0:00:39]} 37. Rg4 {[%clk 0:02:06]}  Nb7 {[%clk 0:00:36]} 38. c4 {[%clk 0:01:51]}  Nd6 {[%clk 0:00:33]} 39. Rf6 {[%clk 0:01:51]}  Rb8 {[%clk 0:00:22]} 40. c5 {[%clk 0:01:47]}  Ne8 {[%clk 0:00:19]} 41. Nxe4 {[%clk 0:01:46]}  Rb2+ {[%clk 0:00:18]} 42. Kd3 {[%clk 0:01:46]}  Rxa2 {[%clk 0:00:18]} 43. c6 {[%clk 0:01:26]}  Re7 {[%clk 0:00:12]} 44. d6 {[%clk 0:01:26]}  Nxd6 {[%clk 0:00:10]} 45. Nxd6 {[%clk 0:01:20]}  Rh2 {[%clk 0:00:03]} 46. Nf5 {[%clk 0:01:18]} 1-0


[Site "https://www.chess.com"]

[Event "Titled Tuesday Blitz March 07 Late 2023"]
[White "Gerzhoy, Leonid"]
[Black "Licznerski, Lukasz"]
[WhiteFideId "2806126"]
[BlackFideId "1179250"]
[WhiteElo "2617"]
[BlackElo "2450"]
[Result "0-1"]
[Round "11"]
[TimeControl "180+2"]
[Date "2023.03.07"]
[WhiteClock "0:00:15"]
[BlackClock "0:00:09"]

1. d4 {[%clk 0:03:00]}  Nf6 {[%clk 0:02:59]} 2. Nf3 {[%clk 0:03:00]}  g6 {[%clk 0:03:00]} 3. Bg5 {[%clk 0:02:59]}  Bg7 {[%clk 0:03:00]} 4. Nbd2 {[%clk 0:02:58]}  h6 {[%clk 0:02:57]} 5. Bh4 {[%clk 0:02:57]}  d6 {[%clk 0:02:57]} 6. e4 {[%clk 0:02:56]}  g5 {[%clk 0:02:57]} 7. Bg3 {[%clk 0:02:55]}  Nh5 {[%clk 0:02:57]} 8. c3 {[%clk 0:02:55]}  e6 {[%clk 0:02:56]} 9. Bd3 {[%clk 0:02:54]}  Nd7 {[%clk 0:02:54]} 10. Qe2 {[%clk 0:02:51]}  b6 {[%clk 0:02:53]} 11. O-O-O {[%clk 0:02:50]}  Bb7 {[%clk 0:02:53]} 12. Ba6 {[%clk 0:02:49]}  Qc8 {[%clk 0:02:50]} 13. Bxb7 {[%clk 0:02:48]}  Qxb7 {[%clk 0:02:51]} 14. Ne1 {[%clk 0:02:47]}  Nxg3 {[%clk 0:02:50]} 15. hxg3 {[%clk 0:02:47]}  d5 {[%clk 0:02:32]} 16. Nd3 {[%clk 0:02:42]}  O-O-O {[%clk 0:02:22]} 17. f4 {[%clk 0:02:40]}  c5 {[%clk 0:02:00]} 18. dxc5 {[%clk 0:02:39]}  Nxc5 {[%clk 0:01:58]} 19. Nxc5 {[%clk 0:02:38]}  bxc5 {[%clk 0:01:59]} 20. fxg5 {[%clk 0:02:35]}  hxg5 {[%clk 0:01:58]} 21. Rxh8 {[%clk 0:02:34]}  Bxh8 {[%clk 0:01:58]} 22. exd5 {[%clk 0:02:32]}  Qxd5 {[%clk 0:01:47]} 23. Ne4 {[%clk 0:02:30]}  Qxa2 {[%clk 0:01:22]} 24. Nxc5 {[%clk 0:02:23]}  Qa1+ {[%clk 0:01:12]} 25. Kc2 {[%clk 0:02:23]}  Qxd1+ {[%clk 0:01:12]} 26. Qxd1 {[%clk 0:02:22]}  Rxd1 {[%clk 0:01:13]} 27. Kxd1 {[%clk 0:02:22]}  g4 {[%clk 0:01:10]} 28. Ke2 {[%clk 0:02:18]}  Be5 {[%clk 0:01:06]} 29. Kf2 {[%clk 0:02:08]}  Kc7 {[%clk 0:01:06]} 30. Nd3 {[%clk 0:02:03]}  Bg7 {[%clk 0:00:51]} 31. Ke3 {[%clk 0:02:00]}  f5 {[%clk 0:00:50]} 32. Kf4 {[%clk 0:01:48]}  Kd6 {[%clk 0:00:50]} 33. Kg5 {[%clk 0:01:47]}  a5 {[%clk 0:00:43]} 34. Kg6 {[%clk 0:01:41]}  Bh8 {[%clk 0:00:41]} 35. Kh7 {[%clk 0:01:36]}  Be5 {[%clk 0:00:20]} 36. Nxe5 {[%clk 0:01:31]}  Kxe5 {[%clk 0:00:21]} 37. Kg6 {[%clk 0:01:30]}  Ke4 {[%clk 0:00:18]} 38. Kf6 {[%clk 0:01:28]}  e5 {[%clk 0:00:08]} 39. Kg5 {[%clk 0:01:27]}  a4 {[%clk 0:00:05]} 40. c4 {[%clk 0:01:26]}  Kd4 {[%clk 0:00:06]} 41. Kxf5 {[%clk 0:01:25]}  Kxc4 {[%clk 0:00:05]} 42. Kxe5 {[%clk 0:01:25]}  Kb3 {[%clk 0:00:05]} 43. Kf4 {[%clk 0:01:25]}  Kxb2 {[%clk 0:00:05]} 44. Kxg4 {[%clk 0:01:26]}  a3 {[%clk 0:00:06]} 45. Kh5 {[%clk 0:01:27]}  a2 {[%clk 0:00:07]} 46. g4 {[%clk 0:01:27]}  a1=Q {[%clk 0:00:07]} 47. g5 {[%clk 0:01:28]}  Qd1+ {[%clk 0:00:07]} 48. Kh6 {[%clk 0:01:28]}  Qh1+ {[%clk 0:00:07]} 49. Kg7 {[%clk 0:01:27]}  Qxg2 {[%clk 0:00:08]} 50. g6 {[%clk 0:01:28]}  Kc3 {[%clk 0:00:09]} 51. Kh7 {[%clk 0:00:57]}  Qh3+ {[%clk 0:00:08]} 52. Kg8 {[%clk 0:00:55]}  Qe6+ {[%clk 0:00:08]} 53. Kh7 {[%clk 0:00:55]}  Qf5 {[%clk 0:00:08]} 54. Kh6 {[%clk 0:00:54]}  Qf6 {[%clk 0:00:08]} 55. Kh7 {[%clk 0:00:54]}  Kd4 {[%clk 0:00:07]} 56. g7 {[%clk 0:00:53]}  Qf7 {[%clk 0:00:07]} 57. Kh8 {[%clk 0:00:52]}  Qh5+ {[%clk 0:00:07]} 58. Kg8 {[%clk 0:00:52]}  Ke5 {[%clk 0:00:08]} 59. Kf8 {[%clk 0:00:45]}  Kf6 {[%clk 0:00:08]} 60. g8=Q {[%clk 0:00:16]}  Qc5+ {[%clk 0:00:08]} 61. Ke8 {[%clk 0:00:15]}  Qe7# {[%clk 0:00:09]} 0-1


[Site "https://www.chess.com"]